fUST/lending_fUST_20250924
["ID","MTS","AMOUNT","RATE_DAILY","PERIOD"]
[387282770,1758676239134,-1457.12,0.00019178,2]
[387282771,1758676239144,-480.0,0.00019178,2]
[387282774,1758676239153,-480.0,0.00019178,2]
[387282775,1758676239163,-480.0,0.00019178,2]
[387282776,1758676239172,-480.0,0.00019178,2]
[387282777,1758676239181,-480.0,0.00019178,2]
[387282779,1758676239192,-480.0,0.00019178,2]
[387282781,1758676239201,-480.0,0.00019178,2]
[387282783,1758676239211,-1475.04,0.00019178,2]
[387282785,1758676239220,-480.0,0.00019178,2]
[387282787,1758676239230,-480.0,0.00019178,2]
[387282789,1758676239239,-480.0,0.00019178,2]
[387282790,1758676239249,-480.0,0.00019178,2]
[387282791,1758676239259,-480.0,0.00019178,2]
[387282793,1758676239273,-480.0,0.00019178,2]
[387282795,1758676239282,-480.0,0.00019178,2]
[387282797,1758676239292,-480.0,0.00019178,2]
[387282799,1758676239301,-480.0,0.00019178,2]
[387282801,1758676239311,-480.0,0.00019178,2]
[387282803,1758676239320,-480.0,0.00019178,2]
[387282805,1758676239329,-480.0,0.00019178,2]
[387282807,1758676239338,-480.0,0.00019178,2]
[387282809,1758676239349,-480.0,0.00019178,2]
[387282811,1758676239359,-557.51,0.00019178,2]
[387282813,1758676239368,-480.0,0.00019178,2]
[387282815,1758676239378,-383.35994144,0.00019178,2]
[387282895,1758676240602,-96.64005856,0.00019178,2]
[387282896,1758676240612,-369.85606437,0.00019178,2]
[387282897,1758676240624,-110.14393563,0.00019178,2]
[387282898,1758676240634,-289.95370098,0.00019178,2]
[387282899,1758676240643,-1033.39887124,0.00019178,2]
[387282900,1758676240654,-1500.0,0.00019178,2]
[387283208,1758676243718,-1326.10253546,0.00019178,2]
[387283211,1758676243729,-480.0,0.00019178,2]
[387283215,1758676243739,-480.0,0.00019178,2]
[387283218,1758676243749,-480.0,0.00019178,2]
[387283220,1758676243758,-480.0,0.00019178,2]
[387283223,1758676243768,-480.0,0.00019178,2]
[387283227,1758676243779,-480.0,0.00019178,2]
[387283230,1758676243788,-480.0,0.00019178,2]
[387283233,1758676243797,-480.0,0.00019178,2]
[387283236,1758676243806,-1611.35,0.00019178,2]
[387283239,1758676243816,-286.76056878,0.00019178,2]
[387283242,1758676243826,-480.0,0.00019178,2]
[387283245,1758676243835,-480.0,0.00019178,2]
[387283249,1758676243845,-480.0,0.00019178,2]
[387283251,1758676243855,-480.0,0.00019178,2]
[387283254,1758676243863,-480.0,0.00019178,2]
[387283257,1758676243873,-480.0,0.00019178,2]
[387283260,1758676243882,-480.0,0.00019178,2]
[387283263,1758676243891,-542.44,0.00019178,2]
[387283266,1758676243901,-480.0,0.00019178,2]
[387283269,1758676243910,-480.0,0.00019351,2]
[387283272,1758676243919,-480.0,0.00019351,2]
[387283275,1758676243928,-480.0,0.00019351,2]
[387283278,1758676243938,-480.0,0.00019351,2]
[387283281,1758676243947,-480.0,0.00019351,2]
[387283284,1758676243956,-201.61795891,0.00019451,2]
[387283286,1758676243966,-500.0,0.00019451,2]
[387283288,1758676243975,-580.47781969,0.00019451,2]
[387283290,1758676243985,-500.0,0.00019451,2]
[387283292,1758676243994,-500.0,0.00019451,2]
[387283294,1758676244003,-500.0,0.00019451,2]
[387283296,1758676244013,-500.0,0.00019451,2]
[387283298,1758676244022,-500.0,0.00019451,2]
[387283300,1758676244032,-480.0,0.00019452,2]
[387283302,1758676244042,-480.0,0.00019452,2]
[387283304,1758676244051,-480.0,0.00019452,2]
[387283306,1758676244061,-480.0,0.00019452,2]
[387283308,1758676244071,-480.0,0.00019452,2]
[387283310,1758676244080,-480.0,0.00019452,2]
[387283312,1758676244090,-353.33,0.00019452,2]
[387283314,1758676244099,-504.31799774,0.00019452,2]
[387283316,1758676244109,-485.94828062,0.00019452,2]
[387283318,1758676244118,-314.16091496,0.00019452,2]
[387283320,1758676244128,-480.0,0.00019452,2]
[387283322,1758676244137,-480.0,0.00019452,2]
[387283324,1758676244146,-480.0,0.00019452,2]
[387283326,1758676244155,-480.0,0.00019452,2]
[387283328,1758676244164,-480.0,0.00019452,2]
[387283330,1758676244173,-480.0,0.00019452,2]
[387283332,1758676244182,-480.0,0.00019452,2]
[387283334,1758676244192,-480.0,0.00019452,2]
[387283336,1758676244201,-480.0,0.00019452,2]
[387283338,1758676244210,-480.0,0.00019452,2]
[387283340,1758676244219,-480.0,0.00019452,2]
[387283342,1758676244228,-3014.33,0.00019452,2]
[387283344,1758676244237,-480.0,0.00019452,2]
[387283346,1758676244246,-480.0,0.00019452,2]
[387283348,1758676244256,-480.0,0.00019452,2]
[387283350,1758676244269,-480.0,0.00019452,2]
[387283351,1758676244278,-480.0,0.00019452,2]
[387283352,1758676244287,-3955.15,0.00019452,2]
[387283353,1758676244297,-514.36,0.00019452,2]
[387283354,1758676244305,-480.0,0.00019452,2]
[387283355,1758676244314,-480.0,0.00019452,2]
[387283356,1758676244323,-438.23269984,0.00019452,2]
[387283357,1758676244332,-480.0,0.00019452,2]
[387283358,1758676244343,-480.0,0.00019452,2]
[387283359,1758676244353,-480.0,0.00019452,2]
[387283360,1758676244362,-480.0,0.00019452,2]
[387283361,1758676244371,-661.34,0.00019452,2]
[387283362,1758676244380,-480.0,0.00019452,2]
[387283363,1758676244389,-866.57,0.00019452,2]
[387283364,1758676244398,-480.0,0.00019452,2]
[387283365,1758676244407,-1053.31,0.00019452,2]
[387283366,1758676244416,-480.0,0.00019452,2]
[387283367,1758676244426,-480.0,0.00019452,2]
[387283368,1758676244435,-480.0,0.00019452,2]
[387283369,1758676244445,-480.0,0.00019452,2]
[387283370,1758676244454,-480.0,0.00019452,2]
[387283371,1758676244463,-480.0,0.00019452,2]
[387283372,1758676244473,-406.68102002,0.00019452,2]
[387283373,1758676244482,-480.0,0.00019452,2]
[387283374,1758676244491,-480.0,0.00019452,2]
[387283375,1758676244501,-480.0,0.00019452,2]
[387283376,1758676244510,-480.0,0.00019452,2]
[387283377,1758676244519,-930.09,0.00019452,2]
[387283378,1758676244528,-480.0,0.00019452,2]
[387283379,1758676244538,-151.0,0.00019452,2]
[387283380,1758676244547,-480.0,0.00019452,2]
[387283381,1758676244557,-151.0,0.00019452,2]
[387283382,1758676244566,-480.0,0.00019452,2]
[387283383,1758676244575,-480.0,0.00019452,2]
[387283384,1758676244584,-480.0,0.00019452,2]
[387283385,1758676244593,-1457.12,0.00019452,2]
[387283386,1758676244603,-480.0,0.00019452,2]
[387283388,1758676244613,-151.0,0.00019452,2]
[387283390,1758676244623,-480.0,0.00019452,2]
[387283392,1758676244633,-287.921919,0.00019452,2]
[387283394,1758676244642,-480.0,0.00019452,2]
[387283396,1758676244651,-1475.04,0.00019452,2]
[387283398,1758676244662,-481.00994577,0.00019452,2]
[387283400,1758676244671,-480.0,0.00019452,2]
[387283402,1758676244682,-480.0,0.00019452,2]
[387283404,1758676244692,-480.0,0.00019452,2]
[387283406,1758676244701,-480.0,0.00019452,2]
[387283408,1758676244711,-480.0,0.00019452,2]
[387283410,1758676244720,-151.0,0.00019452,2]
[387283412,1758676244731,-480.0,0.00019452,2]
[387283414,1758676244740,-160.269106,0.00019452,2]
[387283416,1758676244749,-480.0,0.00019452,2]
[387283418,1758676244758,-480.0,0.00019452,2]
[387283420,1758676244768,-480.0,0.00019452,2]
[387283422,1758676244777,-480.0,0.00019452,2]
[387283424,1758676244787,-557.51,0.00019452,2]
[387283426,1758676244796,-480.0,0.00019452,2]
[387283428,1758676244805,-480.0,0.00019452,2]
[387283430,1758676244814,-448.35202918,0.00019452,2]
[387283432,1758676244824,-480.0,0.00019452,2]
[387283434,1758676244833,-480.0,0.00019452,2]
[387283436,1758676244843,-480.0,0.00019452,2]
[387283438,1758676244852,-480.0,0.00019452,2]
[387283440,1758676244861,-1611.35,0.00019452,2]
[387283442,1758676244871,-547.25,0.00019452,2]
[387283444,1758676244880,-480.0,0.00019452,2]
[387283446,1758676244889,-480.0,0.00019452,2]
[387283448,1758676244899,-151.0,0.00019452,2]
[387283450,1758676244908,-480.0,0.00019452,2]
[387283452,1758676244917,-480.0,0.00019452,2]
[387283454,1758676244926,-542.44,0.00019452,2]
[387283456,1758676244935,-480.0,0.00019452,2]
[387283457,1758676244944,-500.0,0.00019473,2]
[387283459,1758676244954,-500.0,0.00019473,2]
[387283461,1758676244963,-500.0,0.00019473,2]
[387283463,1758676244972,-500.0,0.00019473,2]
[387283465,1758676244981,-500.0,0.00019473,2]
[387283467,1758676244991,-500.0,0.00019473,2]
[387283469,1758676245000,-500.0,0.00019473,2]
[387283471,1758676245009,-500.0,0.00019473,2]
[387283473,1758676245019,-500.0,0.00019473,2]
[387283475,1758676245029,-157.535577,0.00019473,2]
[387283477,1758676245039,-480.0,0.00019625,2]
[387283479,1758676245049,-480.0,0.00019726,2]
[387283481,1758676245059,-480.0,0.00019726,2]
[387283483,1758676245068,-480.0,0.00019726,2]
[387283485,1758676245079,-314.2,0.00019726,2]
[387283487,1758676245088,-480.0,0.00019726,2]
[387283489,1758676245098,-480.0,0.00019726,2]
[387283491,1758676245107,-480.0,0.00019726,2]
[387283493,1758676245116,-506.41500003,0.00019726,2]
[387283495,1758676245126,-480.0,0.00019726,2]
[387283497,1758676245135,-480.0,0.00019726,2]
[387283499,1758676245144,-480.0,0.00019726,2]
[387283501,1758676245153,-480.0,0.00019726,2]
[387283503,1758676245162,-480.0,0.00019726,2]
[387283505,1758676245171,-480.0,0.00019726,2]
[387283507,1758676245181,-3014.33,0.00019726,2]
[387283509,1758676245190,-480.0,0.00019726,2]
[387283510,1758676245199,-576.3036994,0.00019726,2]
[387283512,1758676245208,-480.0,0.00019726,2]
[387283514,1758676245218,-480.0,0.00019726,2]
[387283516,1758676245227,-480.0,0.00019726,2]
[387283518,1758676245237,-3955.15,0.00019726,2]
[387283520,1758676245246,-514.36,0.00019726,2]
[387283522,1758676245256,-480.0,0.00019726,2]
[387283524,1758676245270,-480.0,0.00019726,2]
[387283526,1758676245281,-480.0,0.00019726,2]
[387283528,1758676245290,-480.0,0.00019726,2]
[387283530,1758676245299,-389.53744956,0.00019726,2]
[387283657,1758676246425,-185.001351,0.00019452,2]
[387283659,1758676246435,-90.46255044,0.00019726,2]
[387283661,1758676246445,-480.0,0.00019726,2]
[387283663,1758676246454,-661.34,0.00019726,2]
[387283664,1758676246464,-480.0,0.00019726,2]
[387283666,1758676246474,-151.0,0.00019726,2]
[387283668,1758676246484,-151.0,0.00019726,2]
[387283670,1758676246493,-866.57,0.00019726,2]
[387283672,1758676246503,-480.0,0.00019726,2]
[387283674,1758676246513,-1053.31,0.00019726,2]
[387283676,1758676246522,-480.0,0.00019726,2]
[387283678,1758676246532,-480.0,0.00019726,2]
[387283680,1758676246541,-480.0,0.00019726,2]
[387283683,1758676246551,-480.0,0.00019726,2]
[387283686,1758676246560,-480.0,0.00019726,2]
[387283689,1758676246570,-480.0,0.00019726,2]
[387283692,1758676246579,-480.0,0.00019726,2]
[387283695,1758676246589,-480.0,0.00019726,2]
[387283697,1758676246598,-480.0,0.00019726,2]
[387283700,1758676246607,-480.0,0.00019726,2]
[387283703,1758676246617,-930.09,0.00019726,2]
[387283706,1758676246626,-480.0,0.00019726,2]
[387283709,1758676246636,-344.28998875,0.00019726,2]
[387283712,1758676246646,-480.0,0.00019726,2]
[387283715,1758676246656,-480.0,0.00019726,2]
[387283718,1758676246665,-457.21554166,0.00019726,2]
[387283721,1758676246676,-22.78445834,0.00019726,2]
[387283724,1758676246686,-1457.12,0.00019726,2]
[387283727,1758676246695,-480.0,0.00019726,2]
[387283729,1758676246704,-480.0,0.00019726,2]
[387283731,1758676246715,-1475.04,0.00019726,2]
[387283733,1758676246729,-480.0,0.00019726,2]
[387283736,1758676246741,-480.0,0.00019726,2]
[387283738,1758676246750,-480.0,0.00019726,2]
[387283740,1758676246759,-480.0,0.00019726,2]
[387283749,1758676246855,-480.0,0.00019726,2]
[387283751,1758676246867,-480.0,0.00019726,2]
[387283753,1758676246877,-480.0,0.00019726,2]
[387283755,1758676246886,-480.0,0.00019726,2]
[387283757,1758676246895,-480.0,0.00019726,2]
[387283759,1758676246905,-98.68417864,0.00019726,2]
[387284442,1758676720619,500.0,0.00027,120]
[387284443,1758676889150,950.0,0.00027,120]
[387284449,1758677414318,173.16665551,0.0002011,13]
[387284450,1758677423348,151.38462346,0.0002011,13]
[387284472,1758677432839,-796.22651817,0.00019176,2]
[387284474,1758677432849,-959.0,0.00019176,2]
[387284476,1758677432859,-1200.0,0.00019176,2]
[387284478,1758677432868,-2765.27348183,0.00019177,2]
[387284486,1758677432947,-1796.78135078,0.00019177,2]
[387284487,1758677432959,-10437.94516739,0.00019177,2]
[387284489,1758677432969,-315.45166377,0.00019177,2]
[387284490,1758677432978,-500.0,0.00019177,2]
[387284491,1758677432988,-294.30017361,0.00019177,2]
[387284492,1758677432997,-503.41737323,0.00019177,2]
[387284493,1758677433007,-480.0,0.00019178,2]
[387284494,1758677433017,-480.0,0.00019178,2]
[387284495,1758677433027,-295.91689876,0.00019178,2]
[387284496,1758677433036,-480.0,0.00019178,2]
[387284497,1758677433045,-480.0,0.00019178,2]
[387284498,1758677433054,-151.0,0.00019178,2]
[387284500,1758677433063,-151.0,0.00019178,2]
[387284503,1758677433072,-151.0,0.00019178,2]
[387284506,1758677433081,-480.0,0.00019178,2]
[387284510,1758677433091,-151.0,0.00019178,2]
[387284512,1758677433101,-196.86888496,0.00019178,2]
[387284515,1758677433111,-480.0,0.00019178,2]
[387284518,1758677433121,-480.0,0.00019178,2]
[387284521,1758677433131,-480.0,0.00019178,2]
[387284523,1758677433140,-498.63,0.00019178,2]
[387284525,1758677433149,-556.5074127,0.00019178,2]
[387284527,1758677433158,-480.0,0.00019178,2]
[387284529,1758677433168,-480.0,0.00019178,2]
[387284531,1758677433177,-480.0,0.00019178,2]
[387284533,1758677433186,-480.0,0.00019178,2]
[387284534,1758677433196,-480.0,0.00019178,2]
[387284537,1758677433206,-480.0,0.00019178,2]
[387284538,1758677433216,-480.0,0.00019178,2]
[387284540,1758677433226,-480.0,0.00019178,2]
[387284542,1758677433236,-464.09744989,0.00019178,2]
[387284544,1758677433245,-151.0,0.00019178,2]
[387284547,1758677433256,-480.0,0.00019178,2]
[387284549,1758677433266,-183.67235037,0.00019178,2]
[387284551,1758677433276,-500.0,0.00019178,2]
[387284553,1758677433286,-151.0,0.00019178,2]
[387284555,1758677433295,-157.82069541,0.00019178,2]
[387284556,1758677433304,-504.53,0.00019178,2]
[387284558,1758677433314,-480.0,0.00019178,2]
[387284560,1758677433323,-497.24,0.00019178,2]
[387284562,1758677433333,-480.0,0.00019178,2]
[387284564,1758677433342,-480.0,0.00019178,2]
[387284566,1758677433352,-480.0,0.00019178,2]
[387284568,1758677433364,-480.0,0.00019178,2]
[387284570,1758677433374,-480.0,0.00019178,2]
[387284572,1758677433383,-187.19239562,0.00019178,2]
[387284575,1758677433395,-292.80760438,0.00019178,2]
[387284577,1758677433405,-480.0,0.00019178,2]
[387284579,1758677433414,-145.2187677,0.00019178,2]
[387284582,1758677433435,-334.7812323,0.00019178,2]
[387284584,1758677433445,-312.04865025,0.00019178,2]
[387284586,1758677433456,-216.98134975,0.00019178,2]
[387284588,1758677433466,-480.0,0.00019178,2]
[387284590,1758677433475,-151.0,0.00019178,2]
[387284592,1758677433484,-480.0,0.00019178,2]
[387284594,1758677433493,-151.0,0.00019178,2]
[387284596,1758677433503,-151.0,0.00019178,2]
[387284598,1758677433512,-3.38865025,0.00019178,2]
[387285293,1758677446804,-476.61134975,0.00019178,2]
[387285294,1758677446814,-488.95771258,0.00019178,2]
[387285295,1758677446823,-490.86609039,0.00019178,2]
[387285296,1758677446834,-480.0,0.00019178,2]
[387285299,1758677446844,-480.0,0.00019178,2]
[387285301,1758677446854,-480.0,0.00019178,2]
[387285303,1758677446864,-480.0,0.00019178,2]
[387285305,1758677446874,-151.0,0.00019178,2]
[387285307,1758677446884,-245.0,0.00019178,2]
[387285309,1758677446894,-151.0,0.00019178,2]
[387285311,1758677446903,-151.0,0.00019178,2]
[387285312,1758677446913,-151.0,0.00019178,2]
[387285313,1758677446923,-480.0,0.00019178,2]
[387285314,1758677446932,-555.8555903,0.00019178,2]
[387285786,1758677674014,10000.0,0.0002916,60]
[387285790,1758677793078,48253.2419787,0.0002916,120]
[387285791,1758677795720,1462.2,0.0002739,120]
[387285794,1758677941732,290.0418968,0.00023288,30]
[387285863,1758678631915,-250.61359458,0.00018757,2]
[387285865,1758678631925,-535.26988659,0.00019176,2]
[387285867,1758678631935,-300.0,0.00019177,2]
[387285869,1758678631944,-887.0,0.00019177,2]
[387285871,1758678631954,-533.51291209,0.00019177,2]
[387285873,1758678631964,-731.7236493,0.00019178,2]
[387285875,1758678631974,-487.01791682,0.00019178,2]
[387285877,1758678631984,-163.84702114,0.00019178,2]
[387285879,1758678631993,-500.0,0.00019178,2]
[387285881,1758678632003,-198.57894002,0.00019178,2]
[387285883,1758678632013,-481.74200786,0.00019178,2]
[387285885,1758678632022,-482.23307627,0.00019178,2]
[387285887,1758678632032,-481.16573803,0.00019178,2]
[387285889,1758678632042,-495.8805256,0.00019178,2]
[387285891,1758678632052,-480.0,0.00019178,2]
[387285894,1758678632062,-1986.37334,0.00019178,2]
[387285896,1758678632071,-485.9233866,0.00019178,2]
[387285898,1758678632081,-164.01285118,0.00019178,2]
[387285900,1758678632091,-500.0,0.00019178,2]
[387285902,1758678632101,-484.05620465,0.00019178,2]
[387285904,1758678632110,-516.71080446,0.00019178,2]
[387285907,1758678632119,-486.42417333,0.00019178,2]
[387285909,1758678632128,-485.28426069,0.00019178,2]
[387285911,1758678632137,-480.0,0.00019178,2]
[387285913,1758678632147,-480.0,0.00019178,2]
[387285915,1758678632156,-481.84748936,0.00019178,2]
[387285917,1758678632166,-485.01126836,0.00019178,2]
[387285919,1758678632175,-482.94149787,0.00019178,2]
[387285920,1758678632184,-490.48322676,0.00019178,2]
[387285922,1758678632193,-484.98603659,0.00019178,2]
[387285925,1758678632203,-485.24155866,0.00019178,2]
[387285927,1758678632212,-481.59372212,0.00019178,2]
[387285929,1758678632224,-484.97704655,0.00019178,2]
[387285931,1758678632237,-480.0,0.00019178,2]
[387285934,1758678632251,-481.77029053,0.00019178,2]
[387285936,1758678632264,-489.73697009,0.00019178,2]
[387285938,1758678632277,-503.51,0.00019178,2]
[387285941,1758678632287,-480.0,0.00019178,2]
[387285943,1758678632298,-480.0,0.00019178,2]
[387285945,1758678632310,-488.39455477,0.00019178,2]
[387285947,1758678632321,-151.0,0.00019178,2]
[387285950,1758678632333,-87.99008314,0.00019178,2]
[387286132,1758678637888,-113.89357617,0.00019178,2]
[387286134,1758678637899,-585.47,0.00019178,2]
[387286135,1758678637910,-481.6548676,0.00019178,2]
[387286137,1758678637921,-480.0,0.00019178,2]
[387286139,1758678637932,-492.46209362,0.00019178,2]
[387286141,1758678637945,-480.0,0.00019178,2]
[387286143,1758678637957,-487.12183367,0.00019178,2]
[387286145,1758678637969,-480.0,0.00019178,2]
[387286147,1758678637980,-480.0,0.00019178,2]
[387286148,1758678637992,-480.0,0.00019178,2]
[387286151,1758678638002,-480.0,0.00019178,2]
[387286153,1758678638014,-485.05164313,0.00019178,2]
[387286155,1758678638024,-358.82545637,0.00019178,2]
[387286157,1758678638036,-414.79631099,0.00019178,2]
[387286159,1758678638048,-480.0,0.00019178,2]
[387286162,1758678638059,-489.47502846,0.00019178,2]
[387286164,1758678638070,-480.0,0.00019178,2]
[387286166,1758678638080,-486.83993813,0.00019178,2]
[387286168,1758678638090,-481.07011965,0.00019178,2]
[387286170,1758678638100,-486.46105292,0.00019178,2]
[387286172,1758678638110,-487.18294657,0.00019178,2]
[387286174,1758678638121,-415.97965063,0.00019178,2]
[387286176,1758678638131,-485.66852882,0.00019178,2]
[387286179,1758678638142,-480.0,0.00019178,2]
[387286181,1758678638152,-151.0,0.00019178,2]
[387286183,1758678638162,-500.0,0.00019178,2]
[387286185,1758678638173,-480.0,0.00019178,2]
[387286187,1758678638184,-151.0,0.00019178,2]
[387286189,1758678638195,-480.0,0.00019178,2]
[387286191,1758678638205,-151.20286254,0.00019178,2]
[387286194,1758678638216,-241.98811732,0.00019178,2]
[387286196,1758678638226,-3373.46,0.00019178,2]
[387286198,1758678638236,-151.0,0.00019178,2]
[387286200,1758678638246,-151.0,0.00019178,2]
[387286202,1758678638256,-151.52085893,0.00019178,2]
[387286204,1758678638267,-500.0,0.00019178,2]
[387286206,1758678638277,-151.20304437,0.00019178,2]
[387286208,1758678638288,-230.47680948,0.00019178,2]
[387286211,1758678638298,-276.4645723,0.00019178,2]
[387286213,1758678638308,-151.33552307,0.00019178,2]
[387286215,1758678638319,-226.12117644,0.00019178,2]
[387286217,1758678638330,-167.30421242,0.00019178,2]
[387286219,1758678638340,-480.0,0.00019178,2]
[387286221,1758678638351,-151.42003104,0.00019178,2]
[387286223,1758678638362,-480.0,0.00019178,2]
[387286226,1758678638372,-482.78873686,0.00019178,2]
[387286228,1758678638383,-481.15318023,0.00019178,2]
[387286230,1758678638394,-480.0,0.00019178,2]
[387286232,1758678638405,-490.20864901,0.00019178,2]
[387286234,1758678638416,-480.0,0.00019178,2]
[387286236,1758678638428,-483.20432716,0.00019178,2]
[387286239,1758678638438,-497.13219392,0.00019178,2]
[387286241,1758678638451,-481.93972384,0.00019178,2]
[387286243,1758678638463,-480.0,0.00019178,2]
[387286245,1758678638475,-482.11846955,0.00019178,2]
[387286247,1758678638486,-482.83363393,0.00019178,2]
[387286249,1758678638498,-482.33018597,0.00019178,2]
[387286252,1758678638510,-480.0,0.00019178,2]
[387286254,1758678638520,-482.5884721,0.00019178,2]
[387286256,1758678638532,-481.61791619,0.00019178,2]
[387286258,1758678638543,-492.06715646,0.00019178,2]
[387286260,1758678638553,-482.51550434,0.00019178,2]
[387286262,1758678638563,-484.25463701,0.00019178,2]
[387286264,1758678638572,-487.8783479,0.00019178,2]
[387286266,1758678638581,-482.32178914,0.00019178,2]
[387286282,1758678638727,-567.79,0.00019178,2]
[387286284,1758678638741,-485.36631834,0.00019178,2]
[387286286,1758678638751,-481.51152585,0.00019178,2]
[387286288,1758678638761,-496.99689125,0.00019178,2]
[387286290,1758678638770,-483.52609487,0.00019178,2]
[387286292,1758678638780,-415.86489548,0.00019178,2]
[387286294,1758678638789,-486.97196989,0.00019178,2]
[387286295,1758678638799,-485.42849193,0.00019178,2]
[387286297,1758678638808,-482.47551251,0.00019178,2]
[387286299,1758678638817,-481.98227297,0.00019178,2]
[387286300,1758678638827,-484.13482508,0.00019178,2]
[387286302,1758678638835,-480.0,0.00019178,2]
[387286303,1758678638845,-485.81977048,0.00019178,2]
[387286305,1758678638854,-480.0,0.00019178,2]
[387286306,1758678638864,-489.31027452,0.00019178,2]
[387286308,1758678638873,-480.0,0.00019178,2]
[387286310,1758678638882,-480.80148959,0.00019178,2]
[387286312,1758678638892,-481.31623734,0.00019178,2]
[387286313,1758678638901,-563.93374564,0.00019178,2]
[387286315,1758678638910,-480.92611096,0.00019178,2]
[387286316,1758678638920,-494.75677101,0.00019178,2]
[387286318,1758678638929,-484.15020917,0.00019178,2]
[387286320,1758678638938,-483.13978912,0.00019178,2]
[387286321,1758678638947,-480.0,0.00019178,2]
[387286323,1758678638957,-257.66914078,0.00019178,2]
[387286324,1758678638966,-480.0,0.00019178,2]
[387286326,1758678638976,-486.2151107,0.00019178,2]
[387286328,1758678638986,-884.19,0.00019178,2]
[387286329,1758678638995,-482.95220863,0.00019178,2]
[387286331,1758678639005,-1118.69,0.00019178,2]
[387286333,1758678639015,-484.34258827,0.00019178,2]
[387286334,1758678639024,-480.0,0.00019178,2]
[387286336,1758678639034,-480.0,0.00019178,2]
[387286337,1758678639043,-480.0,0.00019178,2]
[387286339,1758678639053,-488.08227557,0.00019178,2]
[387286341,1758678639063,-496.77179295,0.00019178,2]
[387286343,1758678639072,-479.02502412,0.00019178,2]
[387286344,1758678639084,-480.0,0.00019178,2]
[387286346,1758678639104,-480.0,0.00019178,2]
[387286348,1758678639123,-485.76414757,0.00019178,2]
[387286350,1758678639132,-151.0,0.00019178,2]
[387286351,1758678639142,-151.0,0.00019178,2]
[387286353,1758678639151,-151.44274863,0.00019178,2]
[387286355,1758678639161,-491.63905823,0.00019178,2]
[387286357,1758678639171,-254.67508821,0.00019178,2]
[387286358,1758678639180,-480.0,0.00019178,2]
[387286360,1758678639190,-480.0,0.00019178,2]
[387286361,1758678639199,-265.95574971,0.00019178,2]
[387286363,1758678639209,-480.0,0.00019178,2]
[387286364,1758678639219,-500.0,0.00019178,2]
[387286366,1758678639228,-480.0,0.00019178,2]
[387286368,1758678639237,-1485.62,0.00019178,2]
[387286370,1758678639246,-500.0,0.00019178,2]
[387286371,1758678639255,-151.0,0.00019178,2]
[387286373,1758678639265,-152.002494,0.00019178,2]
[387286374,1758678639274,-480.0,0.00019178,2]
[387286375,1758678639284,-480.0,0.00019178,2]
[387286376,1758678639293,-480.0,0.00019178,2]
[387286379,1758678639303,-480.0,0.00019178,2]
[387286381,1758678639313,-480.0,0.00019178,2]
[387286382,1758678639322,-480.0,0.00019178,2]
[387286383,1758678639332,-480.0,0.00019178,2]
[387286384,1758678639341,-480.0,0.00019178,2]
[387286385,1758678639351,-298.22035326,0.00019178,2]
[387286386,1758678639361,-480.0,0.00019178,2]
[387286387,1758678639371,-485.25817421,0.00019178,2]
[387286388,1758678639380,-480.0,0.00019178,2]
[387286389,1758678639389,-480.0,0.00019178,2]